fUST/lending_fUST_20250801
["ID","MTS","AMOUNT","RATE_DAILY","PERIOD"]
[376479763,1753992646103,-460.0,0.00019452,2]
[376479765,1753992646112,-460.62441259,0.00019452,2]
[376479767,1753992646122,-508.1,0.00019452,2]
[376479769,1753992646131,-460.0,0.00019452,2]
[376479771,1753992646140,-460.0,0.00019452,2]
[376479773,1753992646150,-460.0,0.00019452,2]
[376479775,1753992646159,-460.0,0.00019452,2]
[376479777,1753992646168,-460.0,0.00019452,2]
[376479779,1753992646177,-460.0,0.00019452,2]
[376479781,1753992646186,-460.0,0.00019452,2]
[376479783,1753992646195,-460.0,0.00019452,2]
[376479785,1753992646204,-460.0,0.00019452,2]
[376479787,1753992646214,-460.0,0.00019452,2]
[376479789,1753992646223,-460.0,0.00019452,2]
[376479791,1753992646233,-460.0,0.00019452,2]
[376479793,1753992646242,-460.0,0.00019452,2]
[376479795,1753992646252,-460.0,0.00019452,2]
[376479797,1753992646261,-460.0,0.00019452,2]
[376479799,1753992646271,-460.0,0.00019452,2]
[376479801,1753992646282,-460.0,0.00019452,2]
[376479804,1753992646294,-460.0,0.00019452,2]
[376479824,1753992646468,-460.0,0.00019452,2]
[376479826,1753992646478,-546.0604165,0.00019452,2]
[376479828,1753992646488,-460.0,0.00019452,2]
[376479830,1753992646498,-460.0,0.00019452,2]
[376479832,1753992646508,-460.0,0.00019452,2]
[376479833,1753992646517,-460.0,0.00019452,2]
[376479835,1753992646526,-460.0,0.00019452,2]
[376479837,1753992646535,-460.0,0.00019452,2]
[376479840,1753992646545,-460.0,0.00019452,2]
[376479842,1753992646554,-460.0,0.00019452,2]
[376479843,1753992646563,-460.0,0.00019452,2]
[376479846,1753992646572,-460.0,0.00019452,2]
[376479848,1753992646581,-460.0,0.00019452,2]
[376479850,1753992646591,-486.62251692,0.00019452,2]
[376479852,1753992646600,-460.0,0.00019452,2]
[376479853,1753992646609,-460.0,0.00019452,2]
[376479855,1753992646619,-460.0,0.00019452,2]
[376479858,1753992646628,-460.0,0.00019452,2]
[376479859,1753992646638,-460.0,0.00019452,2]
[376479861,1753992646648,-460.0,0.00019452,2]
[376479863,1753992646661,-472.58164815,0.00019452,2]
[376479865,1753992646671,-1082.89,0.00019452,2]
[376479867,1753992646680,-834.81,0.00019452,2]
[376479869,1753992646689,-460.0,0.00019452,2]
[376479871,1753992646699,-460.0,0.00019452,2]
[376479873,1753992646708,-543.74,0.00019452,2]
[376479875,1753992646718,-460.0,0.00019452,2]
[376479877,1753992646727,-460.0,0.00019452,2]
[376479879,1753992646736,-462.96982431,0.00019452,2]
[376479882,1753992646746,-460.0,0.00019452,2]
[376479883,1753992646755,-460.0,0.00019452,2]
[376479886,1753992646765,-460.0,0.00019452,2]
[376479888,1753992646774,-456.31356584,0.00019452,2]
[376479890,1753992646783,-640.74,0.00019452,2]
[376479892,1753992646792,-460.0,0.00019452,2]
[376479893,1753992646801,-460.0,0.00019452,2]
[376479895,1753992646811,-460.0,0.00019452,2]
[376479898,1753992646821,-460.0,0.00019452,2]
[376479899,1753992646830,-460.0,0.00019452,2]
[376479901,1753992646840,-460.0,0.00019452,2]
[376479903,1753992646849,-460.0,0.00019452,2]
[376479906,1753992646859,-460.0,0.00019452,2]
[376479907,1753992646869,-478.96,0.00019452,2]
[376479910,1753992646880,-460.0,0.00019452,2]
[376479911,1753992646893,-460.0,0.00019452,2]
[376479913,1753992646907,-460.0,0.00019452,2]
[376479915,1753992646918,-460.0,0.00019452,2]
[376479917,1753992646929,-460.0,0.00019452,2]
[376479919,1753992646940,-460.0,0.00019452,2]
[376479922,1753992646951,-460.0,0.00019452,2]
[376479923,1753992646963,-696.25,0.00019452,2]
[376479925,1753992646974,-528.92959852,0.00019452,2]
[376479928,1753992646986,-460.0,0.00019452,2]
[376479929,1753992646996,-460.0,0.00019452,2]
[376479932,1753992647006,-460.0,0.00019452,2]
[376479934,1753992647015,-460.0,0.00019452,2]
[376479936,1753992647025,-460.0,0.00019452,2]
[376479938,1753992647035,-513.77,0.00019452,2]
[376479940,1753992647044,-1007.37,0.00019452,2]
[376479942,1753992647054,-460.0,0.00019452,2]
[376479944,1753992647064,-460.0,0.00019452,2]
[376479946,1753992647074,-460.0,0.00019452,2]
[376479948,1753992647083,-460.0,0.00019452,2]
[376479950,1753992647091,-460.0,0.00019452,2]
[376479952,1753992647101,-460.0,0.00019452,2]
[376479954,1753992647110,-460.0,0.00019452,2]
[376479956,1753992647120,-460.0,0.00019452,2]
[376479958,1753992647129,-460.0,0.00019452,2]
[376479960,1753992647138,-460.0,0.00019452,2]
[376479962,1753992647147,-460.0,0.00019452,2]
[376479964,1753992647159,-460.0,0.00019452,2]
[376479966,1753992647169,-460.0,0.00019452,2]
[376479968,1753992647178,-543.8,0.00019452,2]
[376479970,1753992647187,-460.0,0.00019452,2]
[376479972,1753992647196,-460.0,0.00019452,2]
[376479974,1753992647206,-460.0,0.00019452,2]
[376479976,1753992647215,-487.29,0.00019452,2]
[376479978,1753992647224,-460.0,0.00019452,2]
[376479980,1753992647233,-460.0,0.00019452,2]
[376479982,1753992647242,-460.0,0.00019452,2]
[376479984,1753992647251,-460.0,0.00019452,2]
[376479986,1753992647261,-260.02701182,0.00019452,2]
[376479988,1753992647270,-460.0,0.00019452,2]
[376479990,1753992647280,-460.0,0.00019452,2]
[376479992,1753992647289,-460.0,0.00019452,2]
[376479994,1753992647299,-460.0,0.00019452,2]
[376479996,1753992647308,-460.0,0.00019452,2]
[376479998,1753992647317,-460.0,0.00019452,2]
[376480000,1753992647326,-460.0,0.00019452,2]
[376480002,1753992647336,-460.0,0.00019452,2]
[376480004,1753992647345,-460.0,0.00019452,2]
[376480006,1753992647354,-663.86,0.00019452,2]
[376480008,1753992647364,-460.0,0.00019452,2]
[376480010,1753992647373,-460.0,0.00019452,2]
[376480012,1753992647382,-460.0,0.00019452,2]
[376480014,1753992647392,-460.0,0.00019452,2]
[376480016,1753992647404,-460.0,0.00019452,2]
[376480018,1753992647413,-460.0,0.00019452,2]
[376480020,1753992647423,-465.48600291,0.00019452,2]
[376480022,1753992647432,-460.0,0.00019452,2]
[376480024,1753992647441,-460.0,0.00019452,2]
[376480026,1753992647450,-460.0,0.00019452,2]
[376480028,1753992647459,-460.0,0.00019452,2]
[376480030,1753992647469,-460.0,0.00019452,2]
[376480032,1753992647479,-460.0,0.00019452,2]
[376480034,1753992647489,-460.0,0.00019452,2]
[376480036,1753992647498,-484.16,0.00019452,2]
[376480038,1753992647507,-460.0,0.00019452,2]
[376480040,1753992647516,-460.0,0.00019452,2]
[376480042,1753992647525,-460.0,0.00019452,2]
[376480044,1753992647534,-461.87057614,0.00019452,2]
[376480046,1753992647543,-460.0,0.00019452,2]
[376480048,1753992647553,-460.0,0.00019452,2]
[376480050,1753992647563,-460.0,0.00019452,2]
[376480052,1753992647572,-460.0,0.00019452,2]
[376480054,1753992647581,-691.12,0.00019452,2]
[376480056,1753992647590,-460.0,0.00019452,2]
[376480058,1753992647599,-518.8,0.00019452,2]
[376480060,1753992647608,-462.35587766,0.00019452,2]
[376480062,1753992647618,-460.0,0.00019452,2]
[376480064,1753992647627,-460.0,0.00019452,2]
[376480066,1753992647637,-460.0,0.00019452,2]
[376480068,1753992647646,-460.0,0.00019452,2]
[376480070,1753992647656,-460.0,0.00019452,2]
[376480072,1753992647666,-460.0,0.00019452,2]
[376480074,1753992647676,-511.93,0.00019452,2]
[376480076,1753992647685,-460.0,0.00019452,2]
[376480078,1753992647694,-462.21470617,0.00019452,2]
[376480081,1753992647703,-460.0,0.00019452,2]
[376480083,1753992647713,-460.0,0.00019452,2]
[376480085,1753992647722,-460.0,0.00019452,2]
[376480086,1753992647732,-460.0,0.00019452,2]
[376480089,1753992647742,-460.0,0.00019452,2]
[376480091,1753992647752,-460.0,0.00019452,2]
[376480093,1753992647761,-460.0,0.00019452,2]
[376480095,1753992647770,-460.0,0.00019452,2]
[376480097,1753992647779,-460.0,0.00019452,2]
[376480099,1753992647788,-633.78,0.00019452,2]
[376480101,1753992647798,-460.0,0.00019452,2]
[376480103,1753992647808,-460.0,0.00019452,2]
[376480105,1753992647818,-497.613296,0.00019452,2]
[376480107,1753992647827,-3242.99,0.00019452,2]
[376480109,1753992647836,-460.0,0.00019452,2]
[376480111,1753992647845,-460.0,0.00019452,2]
[376480113,1753992647855,-460.0,0.00019452,2]
[376480115,1753992647864,-460.0,0.00019452,2]
[376480117,1753992647877,-562.72875358,0.00019452,2]
[376480119,1753992647887,-573.42763998,0.00019452,2]
[376480121,1753992647896,-460.0,0.00019452,2]
[376480123,1753992647907,-472.0,0.00019452,2]
[376480125,1753992647917,-298.75012774,0.00019452,2]
[376480127,1753992647926,-622.23,0.00019452,2]
[376480129,1753992647935,-460.0,0.00019452,2]
[376480131,1753992647945,-460.0,0.00019452,2]
[376480133,1753992647955,-460.0,0.00019452,2]
[376480135,1753992647964,-906.16,0.00019452,2]
[376480137,1753992647973,-369.69819217,0.00019452,2]
[376480139,1753992647982,-702.88,0.00019452,2]
[376480141,1753992647992,-460.0,0.00019452,2]
[376480143,1753992648002,-176.34252584,0.00019452,2]
[376480145,1753992648011,-460.0,0.00019452,2]
[376480147,1753992648020,-461.50855468,0.00019452,2]
[376480149,1753992648030,-460.0,0.00019452,2]
[376480151,1753992648040,-460.0,0.00019452,2]
[376480153,1753992648049,-750.5,0.00019452,2]
[376480155,1753992648059,-460.0,0.00019452,2]
[376480157,1753992648068,-460.0,0.00019452,2]
[376480159,1753992648077,-460.0,0.00019452,2]
[376480161,1753992648087,-460.0,0.00019452,2]
[376480163,1753992648096,-5504.7,0.00019452,2]
[376480165,1753992648105,-734.59,0.00019452,2]
[376480167,1753992648114,-460.0,0.00019452,2]
[376480169,1753992648124,-460.0,0.00019452,2]
[376480171,1753992648133,-803.88,0.00019452,2]
[376480173,1753992648142,-460.0,0.00019452,2]
[376480175,1753992648151,-321.88817901,0.00019452,2]
[376480176,1753992648161,-460.0,0.00019452,2]
[376480178,1753992648170,-774.99,0.00019452,2]
[376480181,1753992648179,-923.43,0.00019452,2]
[376480183,1753992648189,-460.0,0.00019452,2]
[376480184,1753992648198,-460.0,0.00019452,2]
[376480187,1753992648207,-460.0,0.00019452,2]
[376480189,1753992648216,-868.05,0.00019452,2]
[376480191,1753992648226,-460.0,0.00019452,2]
[376480193,1753992648235,-751.43,0.00019452,2]
[376480195,1753992648244,-460.0,0.00019452,2]
[376480197,1753992648253,-1469.6,0.00019452,2]
[376480199,1753992648263,-460.0,0.00019452,2]
[376480201,1753992648272,-460.0,0.00019452,2]
[376480203,1753992648281,-460.0,0.00019452,2]
[376480205,1753992648290,-460.0,0.00019452,2]
[376480207,1753992648299,-460.0,0.00019452,2]
[376480208,1753992648308,-736.37,0.00019452,2]
[376480210,1753992648317,-460.0,0.00019452,2]
[376480212,1753992648326,-460.0,0.00019452,2]
[376480214,1753992648335,-460.0,0.00019452,2]
[376480216,1753992648345,-460.0,0.00019452,2]
[376480218,1753992648355,-460.0,0.00019452,2]
[376480220,1753992648364,-833.54,0.00019452,2]
[376480222,1753992648374,-460.0,0.00019452,2]
[376480224,1753992648383,-865.22,0.00019452,2]
[376480226,1753992648393,-460.0,0.00019452,2]
[376480228,1753992648402,-460.0,0.00019452,2]
[376480230,1753992648412,-2612.28,0.00019452,2]
[376480232,1753992648421,-2405.18,0.00019452,2]
[376480234,1753992648430,-1459.37,0.00019452,2]
[376480236,1753992648440,-1539.54,0.00019452,2]
[376480238,1753992648449,-460.0,0.00019452,2]
[376480240,1753992648459,-460.0,0.00019452,2]
[376480242,1753992648468,-460.0,0.00019452,2]
[376480244,1753992648478,-3444.98,0.00019452,2]
[376480246,1753992648488,-460.0,0.00019452,2]
[376480248,1753992648497,-2412.48,0.00019452,2]
[376480250,1753992648506,-460.0,0.00019452,2]
[376480252,1753992648515,-460.0,0.00019452,2]
[376480254,1753992648524,-460.0,0.00019452,2]
[376480257,1753992648533,-460.0,0.00019452,2]
[376480259,1753992648543,-3313.16,0.00019452,2]
[376480261,1753992648552,-460.0,0.00019452,2]
[376480263,1753992648560,-460.0,0.00019452,2]
[376480265,1753992648570,-339.200965,0.00019452,2]
[376480267,1753992648579,-460.0,0.00019452,2]
[376480269,1753992648589,-460.0,0.00019452,2]
[376480271,1753992648598,-460.0,0.00019452,2]
[376480272,1753992648607,-460.0,0.00019452,2]
[376480275,1753992648617,-460.0,0.00019452,2]
[376480277,1753992648627,-460.0,0.00019452,2]
[376480278,1753992648636,-460.0,0.00019452,2]
[376480280,1753992648646,-460.0,0.00019452,2]
[376480283,1753992648657,-460.0,0.00019452,2]
[376480285,1753992648666,-460.0,0.00019452,2]
[376480287,1753992648677,-682.17,0.00019452,2]
[376480289,1753992648687,-460.0,0.00019452,2]
[376480291,1753992648696,-539.31,0.00019452,2]
[376480293,1753992648706,-641.75,0.00019452,2]
[376480295,1753992648716,-460.0,0.00019452,2]
[376480297,1753992648725,-460.0,0.00019452,2]
[376480298,1753992648735,-460.0,0.00019452,2]
[376480300,1753992648745,-743.96,0.00019452,2]
[376480303,1753992648754,-460.0,0.00019452,2]
[376480305,1753992648764,-460.0,0.00019452,2]
[376480306,1753992648773,-460.0,0.00019452,2]
[376480308,1753992648783,-460.0,0.00019452,2]
[376480310,1753992648793,-2548.5,0.00019452,2]
[376480312,1753992648803,-460.0,0.00019452,2]
[376480314,1753992648813,-7913.01,0.00019452,2]
[376480316,1753992648822,-954.79,0.00019452,2]
[376480319,1753992648832,-7531.09,0.00019452,2]
[376480320,1753992648841,-460.0,0.00019452,2]
[376480322,1753992648851,-2692.51,0.00019452,2]
[376480324,1753992648861,-460.0,0.00019452,2]
[376480327,1753992648871,-460.0,0.00019452,2]
[376480329,1753992648884,-818.96,0.00019452,2]
[376480330,1753992648893,-562.28,0.00019452,2]
[376480333,1753992648904,-460.0,0.00019452,2]
[376480335,1753992648913,-460.0,0.00019452,2]
[376480337,1753992648923,-460.0,0.00019452,2]
[376480339,1753992648932,-460.0,0.00019452,2]
[376480341,1753992648942,-460.0,0.00019452,2]
[376480343,1753992648952,-460.0,0.00019452,2]
[376480345,1753992648964,-460.0,0.00019452,2]
[376480347,1753992648975,-460.0,0.00019452,2]
[376480349,1753992648984,-3255.93,0.00019452,2]
[376480351,1753992648993,-460.0,0.00019452,2]
[376480353,1753992649004,-607.26785133,0.00019452,2]
[376480355,1753992649013,-460.0,0.00019452,2]
[376480357,1753992649022,-460.0,0.00019452,2]
[376480359,1753992649032,-460.0,0.00019452,2]
[376480361,1753992649041,-460.0,0.00019452,2]
[376480363,1753992649050,-460.0,0.00019452,2]
[376480365,1753992649060,-797.02,0.00019452,2]
[376480367,1753992649069,-808.48,0.00019452,2]
[376480369,1753992649078,-460.0,0.00019452,2]
[376480371,1753992649087,-844.99,0.00019452,2]
[376480372,1753992649097,-793.26,0.00019452,2]
[376480375,1753992649106,-460.0,0.00019452,2]
[376480377,1753992649116,-460.0,0.00019452,2]
[376480379,1753992649125,-460.0,0.00019452,2]
[376480381,1753992649134,-1355.93,0.00019452,2]
[376480383,1753992649143,-460.0,0.00019452,2]
[376480385,1753992649154,-1670.54,0.00019452,2]
[376480387,1753992649163,-460.0,0.00019452,2]
[376480389,1753992649172,-460.0,0.00019452,2]
[376480391,1753992649181,-460.0,0.00019452,2]
[376480393,1753992649191,-460.0,0.00019452,2]
[376480395,1753992649200,-471.86,0.00019452,2]
[376480397,1753992649209,-592.51842718,0.00019452,2]
[376480399,1753992649218,-592.5,0.00019452,2]
[376480401,1753992649227,-460.0,0.00019452,2]
[376480403,1753992649236,-460.0,0.00019452,2]
[376480405,1753992649245,-460.21250983,0.00019452,2]
[376480407,1753992649256,-460.0,0.00019452,2]
[376480408,1753992649265,-460.0,0.00019452,2]
[376480410,1753992649275,-460.0,0.00019452,2]
[376480412,1753992649284,-1048.65,0.00019452,2]
[376480415,1753992649294,-460.0,0.00019452,2]
[376480416,1753992649303,-460.0,0.00019452,2]
[376480418,1753992649313,-921.2,0.00019452,2]
[376480420,1753992649322,-460.0,0.00019452,2]
[376480422,1753992649332,-460.0,0.00019452,2]
[376480424,1753992649342,-460.0,0.00019452,2]
[376480427,1753992649351,-460.0,0.00019452,2]
[376480428,1753992649361,-3558.48,0.00019452,2]
[376480431,1753992649370,-460.0,0.00019452,2]
[376480433,1753992649381,-553.37,0.00019452,2]
[376480435,1753992649391,-481.29,0.00019452,2]
[376480450,1753992649531,-460.0,0.00019452,2]
[376480452,1753992649541,-484.2,0.00019452,2]
[376480454,1753992649551,-460.0,0.00019452,2]
[376480456,1753992649560,-200.0,0.00019459,15]
[376480458,1753992649576,-200.0,0.00019459,15]
[376480460,1753992649587,-200.0,0.00019459,15]
[376480462,1753992649596,-200.0,0.00019459,15]
[376480464,1753992649606,-200.0,0.00019459,15]
[376480466,1753992649616,-200.0,0.00019459,15]
[376480468,1753992649625,-200.0,0.00019459,15]
[376480470,1753992649634,-200.0,0.00019459,15]
[376480472,1753992649643,-500.0,0.00019473,2]
[376480474,1753992649654,-500.82702739,0.00019473,2]
[376480476,1753992649663,-500.0,0.00019473,2]
[376480478,1753992649672,-160.599,0.00019473,2]
[376480480,1753992649682,-624.7590982,0.00019489,2]
[376480482,1753992649691,-784.39,0.000195,2]
[376480484,1753992649701,-150.0,0.00019541,2]
[376480486,1753992649710,-150.0,0.00019541,2]
[376480488,1753992649720,-150.0,0.00019541,2]
[376480490,1753992649729,-150.0,0.00019541,2]
[376480492,1753992649739,-244.089,0.00019541,2]
[376480494,1753992649748,-2146.0,0.00019541,2]
[376480496,1753992649757,-970.0,0.00019541,2]
[376480498,1753992649766,-635.0,0.00019541,2]
[376480500,1753992649775,-200.649247,0.00019552,3]
[376480502,1753992649784,-157.956701,0.00019552,3]
[376480504,1753992649793,-183.46590921,0.00019644,2]
[376480506,1753992649802,-177.696923,0.00019664,2]
[376480508,1753992649812,-500.0,0.00019687,2]
[376480510,1753992649821,-624.7590982,0.00019695,2]
[376480512,1753992649830,-442.85303136,0.00019721,2]
[376480514,1753992649839,-454.29992195,0.00019721,2]
[376480516,1753992649848,-565.81,0.00019725,2]
[376480518,1753992649857,-2467.09,0.00019725,2]
[376480519,1753992649867,-460.0,0.00019725,2]
[376480521,1753992649880,-1731.99,0.00019725,2]
[376480523,1753992649889,-460.0,0.00019725,2]
[376480525,1753992649898,-460.0,0.00019725,2]
[376480527,1753992649907,-748.55,0.00019725,2]
[376480529,1753992649918,-460.0,0.00019725,2]
[376480531,1753992649927,-1147.33,0.00019725,2]
[376480533,1753992649937,-480.28,0.00019725,2]
[376480535,1753992649946,-576.43038979,0.00019726,2]
[376480537,1753992649956,-460.0,0.00019726,2]
[376480539,1753992649966,-460.0,0.00019726,2]
[376480541,1753992649975,-601.43046983,0.00019726,2]
[376480543,1753992649984,-518.28,0.00019726,2]
[376480545,1753992649993,-390.89803946,0.00019726,2]
[376480547,1753992650003,-460.0,0.00019726,2]
[376480549,1753992650012,-460.0,0.00019726,2]
[376480551,1753992650021,-508.1,0.00019726,2]
[376480553,1753992650030,-460.0,0.00019726,2]
[376480555,1753992650040,-460.0,0.00019726,2]
[376480557,1753992650049,-460.0,0.00019726,2]
[376480559,1753992650058,-460.0,0.00019726,2]
[376480561,1753992650067,-460.0,0.00019726,2]
[376480563,1753992650076,-276.71472761,0.00019726,2]
[376480565,1753992650085,-562.87169355,0.00019726,2]
[376480567,1753992650094,-460.0,0.00019726,2]
[376480569,1753992650104,-470.5401098,0.00019726,2]
[376480571,1753992650114,-464.47299219,0.00019726,2]
[376480573,1753992650123,-460.0,0.00019726,2]
[376480575,1753992650133,-460.0,0.00019726,2]
[376480577,1753992650142,-460.0,0.00019726,2]
[376480579,1753992650152,-296.91070501,0.00019726,2]
[376480581,1753992650163,-460.0,0.00019726,2]
[376480583,1753992650173,-460.0,0.00019726,2]
[376480585,1753992650183,-460.0,0.00019726,2]
[376480587,1753992650193,-467.64170324,0.00019726,2]
[376480589,1753992650202,-460.0,0.00019726,2]
[376480591,1753992650212,-460.0,0.00019726,2]
[376480593,1753992650221,-460.0,0.00019726,2]
[376480595,1753992650230,-460.0,0.00019726,2]
[376480597,1753992650239,-460.0,0.00019726,2]
[376480599,1753992650249,-460.0,0.00019726,2]
[376480601,1753992650259,-460.0,0.00019726,2]
[376480603,1753992650268,-460.0,0.00019726,2]
[376480605,1753992650277,-460.0,0.00019726,2]
[376480607,1753992650286,-460.0,0.00019726,2]
[376480609,1753992650296,-460.0,0.00019726,2]
[376480611,1753992650306,-460.0,0.00019726,2]
[376480613,1753992650315,-460.0,0.00019726,2]
[376480614,1753992650325,-1082.89,0.00019726,2]
[376480616,1753992650334,-834.81,0.00019726,2]
[376480618,1753992650343,-543.74,0.00019726,2]
[376480620,1753992650353,-460.0,0.00019726,2]
[376480622,1753992650362,-460.0,0.00019726,2]
[376480624,1753992650371,-240.50979445,0.00019726,2]
[376480626,1753992650380,-460.0,0.00019726,2]
[376480628,1753992650390,-460.0,0.00019726,2]
[376480630,1753992650399,-640.74,0.00019726,2]
[376480632,1753992650409,-460.0,0.00019726,2]
[376480634,1753992650418,-460.0,0.00019726,2]
[376480636,1753992650427,-477.87252492,0.00019726,2]
[376480638,1753992650435,-460.0,0.00019726,2]
[376480640,1753992650445,-460.0,0.00019726,2]
[376480642,1753992650454,-460.0,0.00019726,2]
[376480644,1753992650463,-460.0,0.00019726,2]
[376480646,1753992650472,-478.96,0.00019726,2]
[376480648,1753992650481,-460.0,0.00019726,2]
[376480650,1753992650491,-460.0,0.00019726,2]
[376480652,1753992650500,-460.0,0.00019726,2]
[376480654,1753992650509,-460.0,0.00019726,2]
[376480656,1753992650518,-460.0,0.00019726,2]
[376480658,1753992650527,-460.0,0.00019726,2]
[376480660,1753992650536,-696.25,0.00019726,2]
[376480662,1753992650545,-460.0,0.00019726,2]
[376480664,1753992650554,-460.0,0.00019726,2]
[376480665,1753992650563,-460.0,0.00019726,2]
[376480667,1753992650572,-513.77,0.00019726,2]
[376480669,1753992650581,-1007.37,0.00019726,2]
[376480671,1753992650591,-460.0,0.00019726,2]
[376480673,1753992650600,-460.0,0.00019726,2]
[376480675,1753992650609,-460.0,0.00019726,2]
[376480677,1753992650618,-460.0,0.00019726,2]
[376480679,1753992650628,-460.0,0.00019726,2]
[376480681,1753992650637,-460.0,0.00019726,2]
[376480683,1753992650646,-460.0,0.00019726,2]
[376480685,1753992650655,-460.0,0.00019726,2]
[376480687,1753992650664,-460.0,0.00019726,2]
[376480689,1753992650674,-460.0,0.00019726,2]
[376480691,1753992650683,-460.0,0.00019726,2]
[376480693,1753992650693,-543.8,0.00019726,2]
[376480695,1753992650702,-460.0,0.00019726,2]
[376480697,1753992650711,-460.0,0.00019726,2]
[376480699,1753992650720,-487.29,0.00019726,2]
[376480701,1753992650730,-309.74560266,0.00019726,2]
[376480703,1753992650740,-460.0,0.00019726,2]
[376480705,1753992650749,-460.0,0.00019726,2]
[376480707,1753992650759,-169.60272768,0.00019726,2]
[376480709,1753992650768,-460.0,0.00019726,2]
[376480711,1753992650777,-460.0,0.00019726,2]
[376480713,1753992650786,-460.0,0.00019726,2]
[376480715,1753992650795,-460.0,0.00019726,2]
[376480717,1753992650804,-460.0,0.00019726,2]
[376480719,1753992650813,-460.0,0.00019726,2]
[376480721,1753992650822,-307.64298025,0.00019726,2]
[376480723,1753992650831,-663.86,0.00019726,2]
[376480724,1753992650840,-460.0,0.00019726,2]
[376480726,1753992650849,-460.0,0.00019726,2]
[376480728,1753992650858,-460.0,0.00019726,2]
[376480730,1753992650867,-460.0,0.00019726,2]
[376480732,1753992650876,-460.0,0.00019726,2]
[376480734,1753992650890,-460.0,0.00019726,2]
[376480736,1753992650899,-460.0,0.00019726,2]
[376480738,1753992650908,-460.0,0.00019726,2]
[376480740,1753992650917,-460.0,0.00019726,2]
[376480742,1753992650928,-460.0,0.00019726,2]
[376480744,1753992650937,-484.16,0.00019726,2]
[376480746,1753992650946,-460.0,0.00019726,2]
[376480748,1753992650956,-151.0,0.00019726,2]
[376480750,1753992650966,-460.0,0.00019726,2]
[376480752,1753992650975,-460.0,0.00019726,2]
[376480754,1753992650984,-572.62295176,0.00019726,2]
[376480756,1753992650993,-691.12,0.00019726,2]
[376480758,1753992651002,-460.0,0.00019726,2]
[376480760,1753992651011,-151.0,0.00019726,2]
[376480761,1753992651021,-518.8,0.00019726,2]
[376480763,1753992651030,-460.0,0.00019726,2]
[376480765,1753992651039,-460.0,0.00019726,2]
[376480767,1753992651049,-460.0,0.00019726,2]
[376480769,1753992651058,-460.0,0.00019726,2]
[376480771,1753992651067,-511.93,0.00019726,2]
[376480773,1753992651076,-460.0,0.00019726,2]
[376480775,1753992651085,-460.0,0.00019726,2]
[376480777,1753992651094,-460.0,0.00019726,2]
[376480779,1753992651103,-460.0,0.00019726,2]
[376480781,1753992651113,-460.0,0.00019726,2]
[376480783,1753992651123,-460.0,0.00019726,2]
[376480785,1753992651132,-460.0,0.00019726,2]
[376480787,1753992651141,-460.0,0.00019726,2]
[376480789,1753992651149,-633.78,0.00019726,2]